bitfinex-derivatives/quotes_BNBF0:USTF0_20250908
["timestamp","ask_amount","ask_price","bid_price","bid_amount"]
[1757305527548,0.63070659,876.92,875.88,0.1981884]
[1757305527749,0.63070659,876.91,875.89,1.041]
[1757305527948,0.63070659,876.9,875.89,1.041]
[1757305528252,0.63070659,876.89,875.89,1.041]
[1757305528451,0.63070659,876.88,875.89,1.041]
[1757305528751,0.63070659,876.87,875.89,1.041]
[1757305529048,0.63070659,876.86,875.89,1.041]
[1757305529249,0.63070659,876.85,875.89,1.041]
[1757305529452,0.63070659,876.84,875.89,1.041]
[1757305529648,0.63070659,876.83,875.89,1.041]
[1757305529852,0.63070659,876.82,875.89,1.041]
[1757305530050,0.63070659,876.81,875.89,1.041]
[1757305530349,0.63070659,876.8,875.89,1.041]
[1757305530548,1.00254598,876.89,875.89,1.041]
[1757305530549,0.63070659,876.79,875.89,1.041]
[1757305530752,0.63070659,876.78,875.89,1.041]
[1757305530950,0.63070659,876.77,875.89,1.041]
[1757305531151,0.63070659,876.76,875.89,1.041]
[1757305531353,0.63070659,876.75,875.89,1.041]
[1757305531654,0.63070659,876.74,875.89,1.041]
[1757305531854,0.63070659,876.73,875.89,1.041]
[1757305532052,1.52215777,877.08,875.89,1.041]
[1757305532053,0.63070659,876.72,875.89,1.041]
[1757305532350,0.63070659,876.71,875.89,1.041]
[1757305532553,0.63070659,876.7,875.89,1.041]
[1757305532752,0.63070659,876.69,875.89,1.041]
[1757305533054,0.63070659,876.68,875.89,1.041]
[1757305533252,0.63070659,876.67,875.89,1.041]
[1757305533449,1.00254598,876.77,875.89,1.041]
[1757305533651,1.63321446,876.76,875.89,1.041]
[1757305533854,0.63066848,876.75,875.89,1.041]
[1757305534153,0.63066848,876.74,875.89,1.041]
[1757305534353,0.63066848,876.73,875.89,1.041]
[1757305534554,0.63066848,876.72,875.89,1.041]
[1757305534854,0.63066848,876.71,875.89,1.041]
[1757305535054,0.63066848,876.7,875.89,1.041]
[1757305535351,0.63066848,876.69,875.89,1.041]
[1757305535551,0.63066848,876.68,875.89,1.041]
[1757305535855,0.63066848,876.67,875.89,1.041]
[1757305536154,1.00254598,876.77,875.89,1.041]
[1757305536351,1.52215777,877.24,875.89,1.041]
[1757305536549,0.63073801,877.23,875.89,1.041]
[1757305536850,0.63073801,877.22,875.89,1.041]
[1757305537054,0.63073801,877.21,875.89,1.041]
[1757305537350,0.63073801,877.2,875.89,1.041]
[1757305537654,0.63073801,877.19,875.89,1.041]
[1757305537852,0.63073801,877.18,875.89,1.041]
[1757305538052,0.63073801,877.17,875.89,1.041]
[1757305538256,0.63073801,877.16,875.89,1.041]
[1757305538453,0.63073801,877.15,875.89,1.041]
[1757305538756,0.63073801,877.14,875.89,1.041]
[1757305538953,0.63073801,877.13,875.89,1.041]
[1757305539253,0.63073801,877.12,875.89,1.041]
[1757305539452,0.63073801,877.11,875.89,1.041]
[1757305539657,0.63073801,877.1,875.89,1.041]
[1757305539954,0.63073801,877.09,876.0,0.19811619]
[1757305540156,0.63073801,877.08,876.0,0.19811619]
[1757305540354,0.63073801,877.07,876.0,0.19811619]
[1757305540558,0.63073801,877.06,876.0,0.19811619]
[1757305540756,0.63073801,877.05,876.0,0.19811619]
[1757305540960,0.63073801,877.04,876.0,0.19811619]
[1757305541160,0.63073801,877.03,876.0,0.19811619]
[1757305541361,0.63073801,877.02,876.0,0.19811619]
[1757305541656,0.63073801,877.01,876.0,0.19811619]
[1757305541857,1.52215777,877.64,876.0,0.19811619]
[1757305542060,0.62745758,877.63,876.0,0.19811619]
[1757305542257,0.62745758,877.62,876.0,0.19811619]
[1757305542456,0.62745758,877.61,876.0,0.19811619]
[1757305542662,0.62745758,877.6,876.0,0.19811619]
[1757305542962,0.62745758,877.59,876.0,0.19811619]
[1757305543162,0.62745758,877.58,876.0,0.19811619]
[1757305543463,0.62745758,877.57,876.0,0.19811619]
[1757305543761,0.19811224,878.57,876.0,0.19811619]
[1757305543762,0.62745758,877.56,876.0,0.19811619]
[1757305543962,0.62745758,877.55,876.0,0.19811619]
[1757305544162,0.62745758,877.54,876.0,0.19811619]
[1757305544458,0.62745758,877.53,876.0,0.19811619]
[1757305544759,0.62745758,877.52,876.0,0.19811619]
[1757305544959,0.62745758,877.51,876.0,0.19811619]
[1757305545158,0.62745758,877.5,876.0,0.19811619]
[1757305545363,0.62745758,877.49,876.0,0.19811619]
[1757305545564,0.62745758,877.48,876.0,0.19811619]
[1757305545764,0.62745758,877.47,876.0,0.19811619]
[1757305545965,0.62745758,877.46,876.0,0.19811619]
[1757305546264,0.62745758,877.45,876.0,0.19811619]
[1757305546461,0.62745758,877.44,876.0,0.19811619]
[1757305546660,0.62745758,877.43,876.0,0.19811619]
[1757305546861,0.62745758,877.42,876.0,0.19811619]
[1757305547164,0.62745758,877.41,876.0,0.19811619]
[1757305547364,0.62745758,877.4,876.0,0.19811619]
[1757305547565,0.62745758,877.39,876.0,0.19811619]
[1757305547766,0.62745758,877.38,876.0,0.19811619]
[1757305547962,0.62745758,877.37,876.0,0.19811619]
[1757305548162,0.62745758,877.36,876.0,0.19811619]
[1757305548368,0.62745758,877.35,876.0,0.19811619]
[1757305548662,0.62745758,877.34,876.0,0.19811619]
[1757305548867,0.62745758,877.33,876.0,0.19811619]
[1757305549163,0.62745758,877.32,876.0,0.19811619]
[1757305549365,2.54158261,878.47,876.0,0.19811619]
[1757305549366,0.62745758,877.31,876.0,0.19811619]
[1757305549567,0.62745758,877.3,876.0,0.19811619]
[1757305549768,0.62745758,877.29,876.0,0.19811619]
[1757305549965,0.62745758,877.28,876.0,0.19811619]
[1757305550166,0.62745758,877.27,876.0,0.19811619]
[1757305550365,0.62745758,877.26,876.0,0.19811619]
[1757305550567,0.62745758,877.25,876.0,0.19811619]
[1757305550863,1.52215777,877.59,876.0,0.19811619]
[1757305550864,0.62745758,877.24,876.0,0.19811619]
[1757305551063,1.52215777,877.59,876.0,0.19811619]
[1757305551064,0.62745758,877.23,876.0,0.19811619]
[1757305551264,0.62745758,877.22,876.0,0.19811619]
[1757305551468,0.62745758,877.21,876.0,0.19811619]
[1757305551769,0.62745758,877.2,876.0,0.19811619]
[1757305551969,0.62745758,877.19,876.0,0.19811619]
[1757305552268,0.62745758,877.18,876.0,0.19811619]
[1757305552469,0.62745758,877.17,876.0,0.19811619]
[1757305552669,0.62745758,877.16,876.0,0.19811619]
[1757305552965,0.62745758,877.15,876.0,0.19811619]
[1757305553170,0.62745758,877.14,876.0,0.19811619]
[1757305553367,0.62745758,877.13,876.0,0.19811619]
[1757305553568,0.62745758,877.12,876.0,0.19811619]
[1757305553771,0.62745758,877.11,876.0,0.19811619]
[1757305553970,0.62745758,877.1,876.0,0.19811619]
[1757305554171,0.62745758,877.09,876.0,0.19811619]
[1757305554470,0.62745758,877.08,876.0,0.19811619]
[1757305554670,0.62745758,877.07,876.0,0.19811619]
[1757305554871,0.62745758,877.06,876.0,0.19811619]
[1757305555171,0.62745758,877.05,876.0,0.19811619]
[1757305555466,1.52215777,877.55,876.0,0.19811619]
[1757305555467,0.62745758,877.04,876.0,0.19811619]
[1757305555672,0.62745758,877.03,876.0,0.19811619]
[1757305555872,0.62745758,877.02,876.0,0.19811619]
[1757305556166,0.62745758,877.01,876.0,0.19811619]
[1757305556367,0.62745758,877.0,876.0,0.19811619]
[1757305556566,0.62745758,876.99,876.0,0.19811619]
[1757305556771,1.52215777,877.54,876.0,0.19811619]
[1757305557070,0.62607186,877.53,876.0,0.19811619]
[1757305557267,0.62607186,877.52,876.0,0.19811619]
[1757305557471,0.62607186,877.51,876.0,0.19811619]
[1757305557672,0.62607186,877.5,876.0,0.19811619]
[1757305557972,0.62607186,877.49,876.0,0.19811619]
[1757305558270,0.62607186,877.48,876.0,0.19811619]
[1757305558469,0.62607186,877.47,876.0,0.19811619]
[1757305558668,0.62607186,877.46,876.0,0.19811619]
[1757305558868,0.62607186,877.45,876.0,0.19811619]
[1757305559069,1.52215777,877.34,876.0,0.19811619]
[1757305559371,0.62607186,877.33,876.0,0.19811619]
[1757305559571,0.62607186,877.32,876.0,0.19811619]
[1757305559867,1.52215777,877.34,876.0,0.19811619]
[1757305559868,0.62607186,877.31,876.0,0.19811619]
[1757305560069,0.62607186,877.3,876.0,0.19811619]
[1757305560272,0.62607186,877.29,876.0,0.19811619]
[1757305560470,1.52215777,877.34,876.0,0.19811619]
[1757305560471,0.62607186,877.28,876.0,0.19811619]
[1757305560774,0.62607186,877.27,876.0,0.19811619]
[1757305560970,0.62607186,877.26,876.0,0.19811619]
[1757305561172,0.62607186,877.25,876.0,0.19811619]
[1757305561370,0.62607186,877.24,876.0,0.19811619]
[1757305561570,0.62607186,877.23,876.0,0.19811619]
[1757305561771,0.62607186,877.22,876.0,0.19811619]
[1757305562074,0.62607186,877.21,876.0,0.19811619]
[1757305562370,0.62607186,877.2,876.0,0.19811619]
[1757305562574,0.62607186,877.19,876.0,0.19811619]
[1757305562770,0.62607186,877.18,876.0,0.19811619]
[1757305563073,0.62607186,877.17,876.0,0.19811619]
[1757305563274,0.62607186,877.16,876.0,0.19811619]
[1757305563571,0.62607186,877.15,876.0,0.19811619]
[1757305563774,0.62607186,877.14,876.0,0.19811619]
[1757305563972,0.62607186,877.13,876.0,0.19811619]
[1757305564175,0.62607186,877.12,876.0,0.19811619]
[1757305564373,0.62607186,877.11,876.01,1.238]
[1757305564571,0.62607186,877.1,876.01,1.238]
[1757305564775,0.62607186,877.09,876.01,1.238]
[1757305564976,0.62607186,877.08,876.01,1.238]
[1757305565174,0.62607186,877.07,876.01,1.238]
[1757305565476,0.62607186,877.06,876.01,1.238]
[1757305565677,0.62607186,877.05,876.01,1.238]
[1757305565877,0.62607186,877.04,876.01,1.238]
[1757305566078,0.62607186,877.03,876.01,1.238]
[1757305566376,0.62607186,877.02,876.01,1.238]
[1757305566574,1.00736063,877.47,876.01,1.238]
[1757305566876,0.62603118,877.46,876.01,1.238]
[1757305567077,0.62603118,877.45,876.01,1.238]
[1757305567276,0.62603118,877.44,876.01,1.238]
[1757305567478,0.62603118,877.43,876.01,1.238]
[1757305567674,0.62603118,877.42,876.01,1.238]
[1757305567973,0.62603118,877.41,876.01,1.238]
[1757305568178,0.62603118,877.4,876.01,1.238]
[1757305568473,0.62603118,877.39,876.01,1.238]
[1757305568671,0.62603118,877.38,876.01,1.238]
[1757305568877,0.62603118,877.37,876.01,1.238]
[1757305569074,0.62603118,877.36,876.01,1.238]
[1757305569274,0.62603118,877.35,876.01,1.238]
[1757305569478,0.62603118,877.34,876.01,1.238]
[1757305569775,0.62603118,877.33,876.01,1.238]
[1757305569978,0.62603118,877.32,876.01,1.238]
[1757305570278,0.62603118,877.31,876.01,1.238]
[1757305570481,0.62603118,877.3,876.01,1.238]
[1757305570680,0.62603118,877.29,876.01,1.238]
[1757305570976,0.62603118,877.28,876.01,1.238]
[1757305571179,0.62603118,877.27,876.01,1.238]
[1757305571375,0.62603118,877.26,876.01,1.238]
[1757305571580,0.62603118,877.25,876.01,1.238]
[1757305571778,0.62603118,877.24,876.01,1.238]
[1757305572080,0.62603118,877.23,876.01,1.238]
[1757305572376,0.62603118,877.22,876.01,1.238]
[1757305572574,0.62603118,877.21,876.01,1.238]
[1757305572777,0.62603118,877.2,876.01,1.238]
[1757305572980,0.62603118,877.19,876.01,1.238]
[1757305573180,0.62603118,877.18,876.01,1.238]
[1757305573380,0.62603118,877.17,876.01,1.238]
[1757305573582,0.62603118,877.16,876.01,1.238]
[1757305573880,0.62603118,877.15,876.01,1.238]
[1757305574080,0.62603118,877.14,876.01,1.238]
[1757305574377,0.62603118,877.13,876.01,1.238]
[1757305574576,0.62603118,877.12,876.01,1.238]
[1757305574779,0.62603118,877.11,876.01,1.238]
[1757305574974,0.62603118,877.1,876.01,1.238]
[1757305575176,0.62603118,877.09,876.01,1.238]
[1757305575478,0.62603118,877.08,876.01,1.238]
[1757305575677,0.62603118,877.07,876.01,1.238]
[1757305575876,1.00736063,877.56,876.01,1.238]
[1757305576080,0.62651824,877.55,876.01,1.238]
[1757305576281,0.62651824,877.54,876.01,1.238]
[1757305576480,0.62651824,877.53,876.01,1.238]
[1757305576776,0.62651824,877.52,876.01,1.238]
[1757305576980,0.62651824,877.51,876.01,1.238]
[1757305577181,0.62651824,877.5,876.01,1.238]
[1757305577481,0.62651824,877.49,876.01,1.238]
[1757305577679,0.62651824,877.48,876.01,1.238]
[1757305577880,0.62651824,877.47,876.01,1.238]
[1757305578080,0.62651824,877.46,876.01,1.238]
[1757305578281,0.62651824,877.45,876.01,1.238]
[1757305578476,0.62651824,877.44,876.01,1.238]
[1757305578681,0.62651824,877.43,876.01,1.238]
[1757305578982,0.62651824,877.42,876.01,1.238]
[1757305579180,0.62651824,877.41,876.01,1.238]
[1757305579379,0.62651824,877.4,876.01,1.238]
[1757305579676,0.62651824,877.39,876.01,1.238]
[1757305579875,0.62651824,877.38,876.01,1.238]
[1757305580078,0.62651824,877.37,876.01,1.238]
[1757305580275,0.62651824,877.36,876.01,1.238]
[1757305580481,0.62651824,877.35,876.01,1.238]
[1757305580680,0.62651824,877.34,876.01,1.238]
[1757305580880,0.62651824,877.33,876.01,1.238]
[1757305581081,0.62651824,877.32,876.01,1.238]
[1757305581378,0.62651824,877.31,876.01,1.238]
[1757305581582,0.62651824,877.3,876.01,1.238]
[1757305581776,0.62651824,877.29,876.01,1.238]
[1757305582081,0.62651824,877.28,876.01,1.238]
[1757305582278,0.62651824,877.27,876.01,1.238]
[1757305582477,0.62651824,877.26,876.01,1.238]
[1757305582678,0.62651824,877.25,876.01,1.238]
[1757305582880,0.62651824,877.24,876.01,1.238]
[1757305583080,0.62651824,877.23,876.01,1.238]
[1757305583382,0.62651824,877.22,876.01,1.238]
[1757305583681,0.62651824,877.21,876.01,1.238]
[1757305583881,0.62651824,877.2,876.01,1.238]
[1757305584078,0.62651824,877.19,876.01,1.238]
[1757305584381,0.62651824,877.18,876.01,1.238]
[1757305584682,0.62651824,877.17,876.01,1.238]
[1757305584881,0.62651824,877.16,876.01,1.238]
[1757305585078,0.62651824,877.15,876.01,1.238]
[1757305585282,0.62651824,877.14,876.01,1.238]
[1757305585481,0.62651824,877.13,876.01,1.238]
[1757305585679,0.62651824,877.12,876.01,1.238]
[1757305585884,0.62651824,877.11,876.01,1.238]
[1757305586182,0.62651824,877.1,876.01,1.238]
[1757305586383,0.62651824,877.09,876.01,1.238]
[1757305586583,0.62651824,877.08,876.01,1.238]
[1757305586783,0.62651824,877.07,876.01,1.238]
[1757305586984,0.62651824,877.06,876.01,1.238]
[1757305587184,0.62651824,877.05,876.01,1.238]
[1757305587479,0.62651824,877.04,876.01,1.238]
[1757305587684,0.62651824,877.03,876.01,1.238]
[1757305587884,0.62651824,877.02,876.01,1.238]
[1757305588081,0.62651824,877.01,876.01,1.238]
[1757305588290,0.62651824,877.0,876.01,1.238]
[1757305588481,0.62651824,876.99,876.01,1.238]
[1757305588684,0.62651824,876.98,876.01,1.238]
[1757305588884,0.62651824,876.97,876.01,1.238]
[1757305589085,0.62651824,876.96,876.01,1.238]
[1757305589285,0.62651824,876.95,876.01,1.238]
[1757305589581,0.62651824,876.94,876.01,1.238]
[1757305589786,0.62651824,876.93,876.01,1.238]
[1757305590080,1.00736063,877.09,876.01,1.238]
[1757305590081,0.62651824,876.92,876.01,1.238]
[1757305590386,0.62651824,876.91,876.01,1.238]
[1757305590583,0.62651824,876.9,876.01,1.238]
[1757305590881,0.62651824,876.89,876.01,1.238]
[1757305591185,0.62651824,876.88,876.01,1.238]
[1757305591380,0.62651824,876.87,876.0,0.19811619]
[1757305591582,0.62651824,876.86,876.0,0.19811619]
[1757305591783,0.62651824,876.85,876.0,0.19811619]
[1757305591982,0.62651824,876.84,876.0,0.19811619]
[1757305592187,0.62651824,876.83,876.0,0.19811619]
[1757305592387,0.62651824,876.82,876.0,0.19811619]
[1757305592589,0.62651824,876.81,876.0,0.19811619]
[1757305592787,0.62651824,876.8,876.0,0.19811619]
[1757305592989,0.62651824,876.79,876.0,0.19811619]
[1757305593186,0.62651824,876.78,876.0,0.19811619]
[1757305593389,0.62651824,876.77,876.0,0.19811619]
[1757305593685,0.62651824,876.76,876.0,0.19811619]
[1757305593885,1.00736063,877.25,876.0,0.19811619]
[1757305594086,0.62762644,877.24,876.0,0.19811619]
[1757305594391,0.62762644,877.23,876.0,0.19811619]
[1757305594590,0.62762644,877.22,876.01,1.014]
[1757305594791,0.62762644,877.21,876.01,1.014]
[1757305595085,0.62762644,877.2,876.01,1.014]
[1757305595283,0.62762644,877.19,876.01,1.014]
[1757305595485,1.00736063,877.25,876.01,1.014]
[1757305595486,0.62762644,877.18,876.01,1.014]
[1757305595693,0.62762644,877.17,876.01,1.014]
[1757305595982,0.62762644,877.16,876.01,1.014]
[1757305596189,0.62762644,877.15,876.01,1.014]
[1757305596487,0.62762644,877.14,876.01,1.014]
[1757305596686,0.62762644,877.13,876.01,1.014]
[1757305596886,0.62762644,877.12,876.01,1.014]
[1757305597189,0.62762644,877.11,876.01,1.014]
[1757305597386,0.62762644,877.1,876.01,1.014]
[1757305597586,0.62762644,877.09,876.01,1.014]
[1757305597885,0.62762644,877.08,876.01,1.014]
[1757305598084,0.62762644,877.07,876.01,1.014]
[1757305598287,0.62762644,877.06,876.01,1.014]
[1757305598486,0.62762644,877.05,876.01,1.014]
[1757305598685,1.00736063,877.25,876.01,1.014]
[1757305598686,0.62762644,877.04,876.01,1.014]
[1757305598884,0.62762644,877.03,876.01,1.014]
[1757305599088,0.62762644,877.02,876.01,1.014]
[1757305599288,0.62762644,877.01,876.01,1.014]
[1757305599489,0.62762644,877.0,876.01,1.014]
[1757305599686,0.62762644,876.99,876.01,1.014]
[1757305599886,0.62762644,876.98,876.01,1.014]
[1757305600087,1.00736063,876.94,876.01,1.014]
[1757305600291,0.62762644,876.93,876.01,1.014]
[1757305600590,0.62762644,876.92,876.01,1.014]
[1757305600790,0.62762644,876.91,876.01,1.014]
[1757305600991,0.62762644,876.9,876.01,1.014]
[1757305601192,0.62762644,876.89,876.01,1.014]
[1757305601389,0.62762644,876.88,876.01,1.014]
[1757305601587,0.62762644,876.87,876.01,1.014]
[1757305601790,0.62762644,876.86,876.01,1.014]
[1757305601988,0.62762644,876.85,876.01,1.014]
[1757305602191,0.62762644,876.84,876.01,1.014]
[1757305602392,0.62762644,876.83,876.01,1.014]
[1757305602593,0.62762644,876.82,876.01,1.014]
[1757305602792,0.62762644,876.81,876.01,1.014]
[1757305603088,0.62762644,876.8,876.01,1.014]
[1757305603298,0.62762644,876.79,876.01,1.014]
[1757305603493,0.62762644,876.78,876.01,1.014]
[1757305603699,0.62762644,876.77,876.01,1.014]
[1757305603897,0.62762644,876.76,876.01,1.014]
[1757305604099,0.62762644,876.75,876.01,1.014]
[1757305604400,1.00736063,876.94,876.01,1.014]
[1757305604401,0.62762644,876.74,876.01,1.014]
[1757305604697,0.62762644,876.73,876.01,1.014]
[1757305604901,0.62762644,876.72,876.01,1.014]
[1757305605200,0.62762644,876.71,876.01,1.014]
[1757305605401,0.62762644,876.7,876.01,1.014]
[1757305605596,0.62762644,876.69,876.01,1.014]
[1757305605898,0.62762644,876.68,876.01,1.014]
[1757305606099,0.62762644,876.67,876.01,1.014]
[1757305606302,0.62762644,876.66,876.01,1.014]
[1757305606502,0.62762644,876.65,876.01,1.014]
[1757305606701,0.62762644,876.64,876.01,1.014]
[1757305606898,0.62762644,876.63,876.01,1.014]
[1757305607201,0.62762644,876.62,876.01,1.014]
[1757305607401,0.62762644,876.61,876.01,1.014]
[1757305607598,0.62762644,876.6,876.01,1.014]
[1757305607797,0.62762644,876.59,876.01,1.014]
[1757305607998,0.62762644,876.58,876.01,1.014]
[1757305608199,0.62762644,876.57,876.01,1.014]
[1757305608402,0.62762644,876.56,876.01,1.014]
[1757305608601,0.62762644,876.55,876.01,1.014]
[1757305608803,0.62762644,876.54,876.01,1.014]
[1757305609000,0.62762644,876.53,876.01,1.014]
[1757305609203,2.54158261,878.0,876.01,1.014]
[1757305609204,0.62762644,876.52,876.01,1.014]
[1757305609401,0.62762644,876.51,876.01,1.014]
[1757305609601,1.00736063,876.81,876.01,1.014]
[1757305609902,1.00736063,876.77,876.01,1.014]
[1757305610100,0.62585614,876.76,876.01,1.014]
[1757305610304,0.62585614,876.75,876.01,1.014]
[1757305610501,0.62585614,876.74,876.01,1.014]
[1757305610703,0.62585614,876.73,876.01,1.014]
[1757305610902,0.62585614,876.72,876.01,1.014]
[1757305611102,0.62585614,876.71,876.01,1.014]
[1757305611303,0.62585614,876.7,876.01,1.014]
[1757305611501,0.62585614,876.69,876.01,1.014]
[1757305611802,0.62585614,876.68,876.01,1.014]
[1757305612002,0.62585614,876.67,876.01,1.014]
[1757305612205,0.62585614,876.66,876.01,1.014]
[1757305612405,1.00736063,876.85,876.01,1.014]
[1757305612406,0.62585614,876.65,876.01,1.014]
[1757305612604,0.62585614,876.64,876.01,1.014]
[1757305612809,0.62585614,876.63,876.01,1.014]
[1757305613105,3.55821566,878.18,876.01,1.014]
[1757305613106,0.62585614,876.62,876.01,1.014]
[1757305613305,1.00736063,876.86,876.01,1.014]
[1757305613306,0.62585614,876.61,876.01,1.014]
[1757305613506,0.62585614,876.6,876.01,1.014]
[1757305613707,0.62585614,876.59,876.01,1.014]
[1757305613904,0.62585614,876.58,876.01,1.014]
[1757305614106,0.62585614,876.57,876.01,1.014]
[1757305614305,0.62585614,876.56,876.01,1.014]
[1757305614505,0.62585614,876.55,876.01,1.014]
[1757305614709,0.62585614,876.54,876.01,1.014]
[1757305615004,0.62585614,876.53,876.01,1.014]
[1757305615209,0.62585614,876.52,876.01,1.014]
[1757305615409,0.62585614,876.51,876.01,1.014]
[1757305615710,0.62585614,876.5,876.01,1.014]
[1757305616010,1.00736063,876.87,876.01,1.014]
[1757305616309,0.6251924,876.86,876.01,1.014]
[1757305616506,0.6251924,876.85,876.01,1.014]
[1757305616704,0.6251924,876.84,876.01,1.014]
[1757305616907,0.6251924,876.83,876.01,1.014]
[1757305617107,0.6251924,876.82,876.01,1.014]
[1757305617409,0.6251924,876.81,876.01,1.014]
[1757305617607,0.6251924,876.8,876.01,1.014]
[1757305617808,0.6251924,876.79,876.01,1.014]
[1757305618008,0.6251924,876.78,876.01,1.014]
[1757305618208,0.6251924,876.77,876.01,1.014]
[1757305618413,0.6251924,876.76,876.01,1.014]
[1757305618609,0.6251924,876.75,876.01,1.014]
[1757305618810,0.6251924,876.74,876.01,1.014]
[1757305619010,0.6251924,876.73,876.01,1.014]
[1757305619210,0.6251924,876.72,876.01,1.014]
[1757305619410,0.6251924,876.71,876.01,1.014]
[1757305619611,0.6251924,876.7,876.01,1.014]
[1757305619810,0.6251924,876.69,876.01,1.014]
[1757305620110,0.6251924,876.68,876.01,1.014]
[1757305620310,0.6251924,876.67,876.01,1.014]
[1757305620511,1.00736063,876.9,876.01,1.014]
[1757305620512,0.6251924,876.66,876.01,1.014]
[1757305620714,0.6251924,876.65,876.01,1.014]
[1757305621010,0.6251924,876.64,876.01,1.014]
[1757305621214,0.6251924,876.63,876.01,1.014]
[1757305621411,0.6251924,876.62,876.01,1.014]
[1757305621711,0.6251924,876.61,876.01,1.014]
[1757305622011,0.6251924,876.6,876.01,1.014]
[1757305622314,0.6251924,876.59,876.01,1.014]
[1757305622512,0.6251924,876.58,876.01,1.014]
[1757305622717,0.6251924,876.57,876.01,1.014]
[1757305622909,0.6251924,876.56,876.01,1.014]
[1757305623115,0.6251924,876.55,876.01,1.014]
[1757305623315,0.6251924,876.54,876.01,1.014]
[1757305623518,0.6251924,876.53,876.01,1.014]
[1757305623814,0.6251924,876.52,876.01,1.014]
[1757305624014,0.6251924,876.51,876.01,1.014]
[1757305624315,0.6251924,876.5,876.01,1.014]
[1757305624516,0.6251924,876.49,876.01,1.014]
[1757305624713,0.6251924,876.48,876.01,1.014]
[1757305624915,0.6251924,876.47,876.01,1.014]
[1757305625116,0.6251924,876.46,876.01,1.014]
[1757305625316,0.6251924,876.45,876.01,1.014]
[1757305625516,0.6251924,876.44,876.01,1.014]
[1757305625816,0.6251924,876.43,876.01,1.014]
[1757305626115,0.6251924,876.42,876.01,1.014]
[1757305626316,0.6251924,876.41,876.01,1.014]
[1757305626616,0.6251924,876.4,876.01,1.014]
[1757305626812,0.6251924,876.39,876.01,1.014]
[1757305627016,0.6251924,876.38,876.01,1.014]
[1757305627317,0.6251924,876.37,876.01,1.014]
[1757305627515,0.6251924,876.36,876.01,1.014]
[1757305627718,1.00736063,876.62,876.01,1.014]
[1757305627917,0.62416594,876.61,876.01,1.014]
[1757305628118,0.62416594,876.6,876.01,1.014]
[1757305628314,1.00736063,876.57,876.01,1.014]
[1757305628520,0.62416594,876.56,876.01,1.014]
[1757305628819,0.62416594,876.55,876.01,1.014]
[1757305629019,0.62416594,876.54,876.01,1.014]
[1757305629217,0.62416594,876.53,876.01,1.014]
[1757305629417,0.62416594,876.52,876.01,1.014]
[1757305629622,0.62416594,876.51,876.01,1.014]
[1757305629822,0.62416594,876.5,876.01,1.014]
[1757305630122,0.62416594,876.49,876.01,1.014]
[1757305630421,0.62416594,876.48,876.01,1.014]
[1757305630721,0.62416594,876.47,876.01,1.014]
[1757305631016,0.62416594,876.46,876.01,1.014]
[1757305631218,0.62416594,876.45,876.01,1.014]
[1757305631416,2.54158261,877.42,876.01,1.014]
[1757305631417,0.62416594,876.44,876.01,1.014]
[1757305631620,0.62416594,876.43,876.01,1.014]
[1757305631916,0.62416594,876.42,876.01,1.014]
[1757305632118,0.62416594,876.41,876.01,1.014]
[1757305632320,0.62416594,876.4,876.01,1.014]
[1757305632518,0.62416594,876.39,876.01,1.014]
[1757305632720,0.62416594,876.38,876.01,1.014]
[1757305632921,0.62416594,876.37,876.01,1.014]
[1757305633121,0.62416594,876.36,876.01,1.014]
[1757305633320,0.62416594,876.35,876.01,1.014]
[1757305633520,1.00736063,876.48,876.01,1.014]
[1757305633825,0.62452586,876.47,876.01,1.014]
[1757305634121,0.62452586,876.46,876.01,1.014]
[1757305634323,0.62452586,876.45,876.01,1.014]
[1757305634520,0.62452586,876.44,876.01,1.014]
[1757305634722,0.62452586,876.43,876.01,1.014]
[1757305634925,0.62452586,876.42,876.01,1.014]
[1757305635222,0.62466073,876.41,876.01,1.014]
[1757305635423,0.62466073,876.4,876.01,1.014]